[Event "*** Titled Tuesday Blitz"]
[Site "Chess.com"]
[Date "2020.05.05"]
[Round "6"]
[White "CarlssonLudvig"]
[Black "Misticpikachu"]
[Result "1-0"]
[WhiteElo "2458"]
[BlackElo "2299"]
[TimeControl "180+1"]
[EndTime "11:09:10 PDT"]
[Termination "CarlssonLudvig won by resignation"]

1. e4 {[%clk 0:03:00.9]} 1... c5 {[%clk 0:02:59.9]} 2. Nf3 {[%clk 0:03:00.6]}
2... Nc6 {[%clk 0:03:00.4]} 3. d4 {[%clk 0:02:55.8]} 3... cxd4 {[%clk
0:03:00.5]} 4. Nxd4 {[%clk 0:02:56.7]} 4... Nf6 {[%clk 0:03:01]} 5. Nc3 {[%clk
0:02:56.5]} 5... e6 {[%clk 0:03:01.1]} 6. g3 {[%clk 0:02:53.9]} 6... Bb4 {[%clk
0:02:59.7]} 7. Bg2 {[%clk 0:02:53.1]} 7... O-O {[%clk 0:02:51.8]} 8. O-O {[%clk
0:02:52.7]} 8... d5 {[%clk 0:02:39.3]} 9. exd5 {[%clk 0:02:35.3]} 9... Nxd5
{[%clk 0:02:28.6]} 10. Nxd5 {[%clk 0:02:33.5]} 10... exd5 {[%clk 0:02:29.5]} 11.
Be3 {[%clk 0:02:24.6]} 11... Qf6 {[%clk 0:02:23.5]} 12. c3 {[%clk 0:02:10.6]}
12... Bc5 {[%clk 0:02:15.4]} 13. Nc2 {[%clk 0:01:58.1]} 13... Bxe3 {[%clk
0:02:11.5]} 14. fxe3 {[%clk 0:01:48.7]} 14... Qg5 {[%clk 0:01:51.7]} 15. Qxd5
{[%clk 0:01:46]} 15... Qxd5 {[%clk 0:01:49.4]} 16. Bxd5 {[%clk 0:01:46.1]} 16...
Bh3 {[%clk 0:01:49.3]} 17. Rfd1 {[%clk 0:01:27.6]} 17... Ne5 {[%clk 0:01:40.5]}
18. Nd4 {[%clk 0:01:19.8]} 18... Rad8 {[%clk 0:01:25]} 19. Nf3 {[%clk
0:00:42.5]} 19... Rxd5 {[%clk 0:01:09.9]} 20. Rxd5 {[%clk 0:00:43.4]} 20...
Nxf3+ {[%clk 0:01:10]} 21. Kf2 {[%clk 0:00:44]} 21... Be6 {[%clk 0:01:07.8]} 22.
Rb5 {[%clk 0:00:17.4]} 22... Nxh2 {[%clk 0:01:03.2]} 23. Rxb7 {[%clk 0:00:17.5]}
23... Ng4+ {[%clk 0:01:03.7]} 24. Ke2 {[%clk 0:00:16.8]} 24... a6 {[%clk
0:01:00.6]} 25. Rd1 {[%clk 0:00:16.5]} 25... Re8 {[%clk 0:00:57.4]} 26. Rd4
{[%clk 0:00:16.6]} 26... Nxe3 {[%clk 0:00:49.5]} 27. Re7 {[%clk 0:00:16.3]}
27... Bg4+ {[%clk 0:00:34.6]} 28. Kd3 {[%clk 0:00:06.9]} 28... Bf5+ {[%clk
0:00:30.8]} 29. Ke2 {[%clk 0:00:07.2]} 29... Bg4+ {[%clk 0:00:29.3]} 30. Kf2
{[%clk 0:00:07.7]} 30... Rb8 {[%clk 0:00:21.1]} 31. Kxe3 {[%clk 0:00:07.4]}
31... h5 {[%clk 0:00:20.6]} 32. b4 {[%clk 0:00:06.8]} 32... Rc8 {[%clk 0:00:20]}
33. c4 {[%clk 0:00:06.8]} 33... Kf8 {[%clk 0:00:16.7]} 34. Re5 {[%clk
0:00:06.9]} 34... f6 {[%clk 0:00:15.7]} 35. Ree4 {[%clk 0:00:07.3]} 35... Kf7
{[%clk 0:00:15.3]} 36. c5 {[%clk 0:00:07.4]} 36... g5 {[%clk 0:00:15.3]} 37. Kf2
{[%clk 0:00:06.4]} 37... Kg6 {[%clk 0:00:12.9]} 38. Re7 {[%clk 0:00:06.3]} 38...
Rb8 {[%clk 0:00:08.4]} 39. a3 {[%clk 0:00:06.5]} 39... a5 {[%clk 0:00:08.1]} 40.
c6 {[%clk 0:00:07]} 40... axb4 {[%clk 0:00:08.3]} 41. axb4 {[%clk 0:00:07.9]}
41... Ra8 {[%clk 0:00:08.5]} 42. c7 {[%clk 0:00:08.4]} 42... Ra2+ {[%clk
0:00:09]} 43. Ke1 {[%clk 0:00:08.3]} 43... Ra1+ {[%clk 0:00:08.1]} 44. Kd2
{[%clk 0:00:08.7]} 44... Rd1+ {[%clk 0:00:08.5]} 45. Kc3 {[%clk 0:00:09.3]}
45... Rc1+ {[%clk 0:00:08.8]} 46. Kb2 {[%clk 0:00:09.9]} 46... Rc6 {[%clk
0:00:07.8]} 47. Rd8 {[%clk 0:00:10]} 47... h4 {[%clk 0:00:06.3]} 48. gxh4 {[%clk
0:00:09.4]} 48... gxh4 {[%clk 0:00:07.2]} 49. Rg8+ {[%clk 0:00:09.3]} 49... Kf5
{[%clk 0:00:06.6]} 50. c8=Q+ {[%clk 0:00:09]} 50... Rxc8 {[%clk 0:00:05.7]} 51.
Rxc8 {[%clk 0:00:09.9]} 51... Kf4 {[%clk 0:00:05.9]} 52. Rh7 {[%clk 0:00:10.5]}
52... Bxc8 {[%clk 0:00:05.2]} 53. Rxh4+ {[%clk 0:00:10.1]} 53... Ke5 {[%clk
0:00:05.9]} 54. Rh8 {[%clk 0:00:09.8]} 54... Bd7 {[%clk 0:00:06]} 55. Kc3 {[%clk
0:00:09.9]} 55... f5 {[%clk 0:00:06.2]} 56. Rf8 {[%clk 0:00:09.6]} 56... f4
{[%clk 0:00:06.1]} 57. Rd8 {[%clk 0:00:09]} 57... Bc6 {[%clk 0:00:04.7]} 58. Rc8
{[%clk 0:00:08.7]} 58... Bd5 {[%clk 0:00:04.8]} 59. Rf8 {[%clk 0:00:07.5]} 59...
Ke4 {[%clk 0:00:05.1]} 60. Re8+ {[%clk 0:00:07.6]} 60... Kf3 {[%clk 0:00:04.7]}
61. Kd3 {[%clk 0:00:07.5]} 61... Kg3 {[%clk 0:00:04.2]} 62. Kd4 {[%clk
0:00:07.6]} 62... Bg2 {[%clk 0:00:04.4]} 63. Rg8+ {[%clk 0:00:07.8]} 63... Kf2
{[%clk 0:00:02.8]} 64. Rf8 {[%clk 0:00:07.6]} 64... f3 {[%clk 0:00:02.9]} 65.
Kd3 {[%clk 0:00:08.1]} 65... Kg3 {[%clk 0:00:02.6]} 66. Ke3 {[%clk 0:00:08.6]}
66... Kh2 {[%clk 0:00:02.6]} 67. Kf2 {[%clk 0:00:07.5]} 67... Kh3 {[%clk
0:00:02.8]} 68. Rxf3+ {[%clk 0:00:07.2]} 68... Kg4 {[%clk 0:00:03.5]} 69. Rg3+
{[%clk 0:00:07]} 69... Kf4 {[%clk 0:00:03.6]} 70. Rxg2 {[%clk 0:00:07.9]} 70...
Ke5 {[%clk 0:00:04.1]} 71. Rg3 {[%clk 0:00:08.6]} 1-0

[Event "*** Titled Tuesday Blitz"]
[Site "Chess.com"]
[Date "2020.05.05"]
[Round "6"]
[White "mbachez"]
[Black "Rafael_Ventura"]
[Result "1-0"]
[WhiteElo "2445"]
[BlackElo "2284"]
[TimeControl "180+1"]
[EndTime "11:09:11 PDT"]
[Termination "mbachez won by resignation"]

1. e4 {[%clk 0:03:00.9]} 1... e5 {[%clk 0:02:59.8]} 2. Nf3 {[%clk 0:03:00.1]}
2... Nc6 {[%clk 0:03:00.1]} 3. Bb5 {[%clk 0:02:59.8]} 3... a6 {[%clk 0:03:00]}
4. Ba4 {[%clk 0:02:59.9]} 4... Nf6 {[%clk 0:02:59.2]} 5. d3 {[%clk 0:02:59.9]}
5... b5 {[%clk 0:02:57.8]} 6. Bb3 {[%clk 0:02:59.8]} 6... Bc5 {[%clk 0:02:57.9]}
7. a4 {[%clk 0:02:59.6]} 7... Rb8 {[%clk 0:02:46.4]} 8. c3 {[%clk 0:02:58.8]}
8... O-O {[%clk 0:02:44.8]} 9. h3 {[%clk 0:02:54.9]} 9... d6 {[%clk 0:02:44.9]}
10. O-O {[%clk 0:02:49.5]} 10... h6 {[%clk 0:02:45.2]} 11. Nbd2 {[%clk
0:02:48.1]} 11... Bb7 {[%clk 0:02:37.9]} 12. Re1 {[%clk 0:02:45.4]} 12... Bb6
{[%clk 0:02:20]} 13. Nf1 {[%clk 0:02:43]} 13... Ne7 {[%clk 0:02:19.8]} 14. Ng3
{[%clk 0:02:38.9]} 14... Ng6 {[%clk 0:02:19.9]} 15. axb5 {[%clk 0:02:35.2]}
15... axb5 {[%clk 0:02:19.9]} 16. Nf5 {[%clk 0:02:30.5]} 16... Re8 {[%clk
0:02:09.5]} 17. Be3 {[%clk 0:02:16.8]} 17... c5 {[%clk 0:01:52.5]} 18. Qc1
{[%clk 0:02:13.3]} 18... h5 {[%clk 0:01:27.3]} 19. Bh6 {[%clk 0:02:06.1]} 19...
c4 {[%clk 0:01:02.9]} 20. Bxg7 {[%clk 0:01:59.7]} 20... Nf4 {[%clk 0:01:03]} 21.
dxc4 {[%clk 0:01:52.1]} 21... Nxe4 {[%clk 0:00:58.6]} 22. cxb5 {[%clk 0:01:42]}
22... Bxf2+ {[%clk 0:00:56.8]} 23. Kh1 {[%clk 0:01:30.5]} 23... Bxe1 {[%clk
0:00:54.6]} 24. Qxe1 {[%clk 0:01:26.9]} 24... Qd7 {[%clk 0:00:47.7]} 25. N3h4
{[%clk 0:01:21.4]} 25... Nxh3 {[%clk 0:00:34.9]} 26. Bf6 {[%clk 0:01:00.3]}
26... Nf4 {[%clk 0:00:30.4]} 27. Nh6+ {[%clk 0:00:58.2]} 27... Kh7 {[%clk
0:00:30.5]} 28. Bxf7 {[%clk 0:00:49.4]} 28... Nxf6 {[%clk 0:00:29.7]} 29. Ra7
{[%clk 0:00:37.4]} 29... Qh3+ {[%clk 0:00:23.5]} 30. Kg1 {[%clk 0:00:35.8]}
30... Nxg2 {[%clk 0:00:24.1]} 31. Qb1+ {[%clk 0:00:22.7]} 31... e4 {[%clk
0:00:19.2]} 32. Nxg2 {[%clk 0:00:21.2]} 32... Kxh6 {[%clk 0:00:19.3]} 33. Qc1+
{[%clk 0:00:19.9]} 33... Kg7 {[%clk 0:00:19.8]} 34. Bxe8 {[%clk 0:00:17.7]}
34... Nxe8 {[%clk 0:00:18.2]} 35. Qg5+ {[%clk 0:00:17.5]} 35... Kf8 {[%clk
0:00:18.3]} 36. Nf4 {[%clk 0:00:13.8]} 36... Qg4+ {[%clk 0:00:18.4]} 37. Qxg4
{[%clk 0:00:13.1]} 37... hxg4 {[%clk 0:00:19.3]} 38. Kf2 {[%clk 0:00:13.1]}
38... Ke7 {[%clk 0:00:20.2]} 39. c4 {[%clk 0:00:12.4]} 39... Nf6 {[%clk
0:00:21.1]} 40. Ke3 {[%clk 0:00:12.3]} 40... Kd8 {[%clk 0:00:20.6]} 41. Ne6+
{[%clk 0:00:11.5]} 41... Kd7 {[%clk 0:00:20.6]} 42. Nd4 {[%clk 0:00:11.5]} 42...
Kc8 {[%clk 0:00:20.8]} 43. b4 {[%clk 0:00:10.6]} 43... Nh5 {[%clk 0:00:20.1]}
44. c5 {[%clk 0:00:09.7]} 44... dxc5 {[%clk 0:00:20.1]} 45. bxc5 {[%clk
0:00:09.8]} 45... g3 {[%clk 0:00:21]} 46. c6 {[%clk 0:00:09.7]} 46... g2 {[%clk
0:00:20.5]} 47. Kf2 {[%clk 0:00:09.7]} 47... Nf4 {[%clk 0:00:20.1]} 48. b6
{[%clk 0:00:05.9]} 48... Bxc6 {[%clk 0:00:19.9]} 49. Rc7+ {[%clk 0:00:05.6]}
49... Kd8 {[%clk 0:00:19.9]} 50. Nxc6+ {[%clk 0:00:05.7]} 50... Ke8 {[%clk
0:00:19.1]} 51. Nxb8 {[%clk 0:00:05.7]} 51... g1=Q+ {[%clk 0:00:18.5]} 52. Kxg1
{[%clk 0:00:05.4]} 52... Nd5 {[%clk 0:00:19.1]} 53. Rc5 {[%clk 0:00:04.4]} 53...
Nxb6 {[%clk 0:00:18.6]} 54. Re5+ {[%clk 0:00:03.2]} 54... Kf7 {[%clk 0:00:19.5]}
55. Rxe4 {[%clk 0:00:03]} 55... Nd5 {[%clk 0:00:20.4]} 56. Nc6 {[%clk
0:00:02.5]} 56... Nc3 {[%clk 0:00:20.3]} 57. Ne5+ {[%clk 0:00:02.2]} 57... Ke6
{[%clk 0:00:19.6]} 58. Re3 {[%clk 0:00:02.2]} 58... Kd5 {[%clk 0:00:19.7]} 59.
Nd3 {[%clk 0:00:01.6]} 59... Kd4 {[%clk 0:00:19.7]} 60. Rh3 {[%clk 0:00:01.5]}
60... Nd5 {[%clk 0:00:19.6]} 61. Kf2 {[%clk 0:00:01.5]} 61... Nf6 {[%clk
0:00:19.3]} 62. Ne1 {[%clk 0:00:01.6]} 62... Kd5 {[%clk 0:00:19.3]} 63. Ke2
{[%clk 0:00:02]} 63... Ke5 {[%clk 0:00:19.6]} 64. Re3+ {[%clk 0:00:02.2]} 64...
Kd5 {[%clk 0:00:19.8]} 65. Nd3 {[%clk 0:00:02.3]} 65... Ng4 {[%clk 0:00:20.4]}
66. Rg3 {[%clk 0:00:02.4]} 66... Nf6 {[%clk 0:00:20.5]} 67. Rg5+ {[%clk
0:00:02.6]} 67... Ke4 {[%clk 0:00:20.5]} 68. Re5+ {[%clk 0:00:02.4]} 68... Kd4
{[%clk 0:00:21.1]} 69. Rf5 {[%clk 0:00:03]} 69... Ng4 {[%clk 0:00:19.5]} 70.
Rf4+ {[%clk 0:00:03.9]} 70... Kd5 {[%clk 0:00:19.2]} 71. Rxg4 {[%clk 0:00:04.8]}
71... Ke6 {[%clk 0:00:20.1]} 72. Rf4 {[%clk 0:00:05.4]} 72... Kd5 {[%clk
0:00:20]} 73. Ke3 {[%clk 0:00:06.3]} 73... Ke6 {[%clk 0:00:20.9]} 74. Re4+
{[%clk 0:00:06.9]} 74... Kd5 {[%clk 0:00:21.8]} 75. Nf2 {[%clk 0:00:07.3]} 75...
Kd6 {[%clk 0:00:22.7]} 76. Ng4 {[%clk 0:00:08.1]} 76... Kd7 {[%clk 0:00:23.4]}
77. Nf6+ {[%clk 0:00:09]} 77... Kd6 {[%clk 0:00:24.3]} 78. Kd4 {[%clk
0:00:09.6]} 78... Kc7 {[%clk 0:00:24]} 79. Re6 {[%clk 0:00:09.9]} 1-0

[Event "*** Titled Tuesday Blitz"]
[Site "Chess.com"]
[Date "2020.05.05"]
[Round "6"]
[White "eljanov"]
[Black "vpsetter"]
[Result "0-1"]
[WhiteElo "2936"]
[BlackElo "2643"]
[TimeControl "180+1"]
[EndTime "11:09:15 PDT"]
[Termination "vpsetter won on time"]

1. Nf3 {[%clk 0:02:57.1]} 1... Nf6 {[%clk 0:02:59.2]} 2. g3 {[%clk 0:02:56.9]}
2... d5 {[%clk 0:02:53]} 3. Bg2 {[%clk 0:02:56.7]} 3... g6 {[%clk 0:02:53.2]} 4.
d4 {[%clk 0:02:54.2]} 4... Bg7 {[%clk 0:02:52.9]} 5. O-O {[%clk 0:02:53.5]} 5...
O-O {[%clk 0:02:53.3]} 6. c4 {[%clk 0:02:53.8]} 6... c6 {[%clk 0:02:53.8]} 7.
Qb3 {[%clk 0:02:53.7]} 7... b6 {[%clk 0:02:41.6]} 8. Nc3 {[%clk 0:02:49.1]} 8...
Ba6 {[%clk 0:02:28.4]} 9. cxd5 {[%clk 0:02:27.6]} 9... cxd5 {[%clk 0:02:27.9]}
10. Ne5 {[%clk 0:02:23.8]} 10... e6 {[%clk 0:02:27.9]} 11. Bf4 {[%clk
0:02:15.5]} 11... Nfd7 {[%clk 0:02:21.5]} 12. Qa4 {[%clk 0:01:58]} 12... Nxe5
{[%clk 0:02:18.6]} 13. Bxe5 {[%clk 0:01:51.4]} 13... Bxe5 {[%clk 0:02:05]} 14.
dxe5 {[%clk 0:01:50.8]} 14... Qd7 {[%clk 0:02:05.3]} 15. Qf4 {[%clk 0:01:46.5]}
15... Nc6 {[%clk 0:01:53]} 16. Rfd1 {[%clk 0:01:46.1]} 16... Qc7 {[%clk
0:01:47.7]} 17. Qa4 {[%clk 0:01:05.3]} 17... Bb7 {[%clk 0:01:43.1]} 18. f4
{[%clk 0:01:03.4]} 18... a6 {[%clk 0:01:33.1]} 19. Rac1 {[%clk 0:00:54.2]} 19...
b5 {[%clk 0:01:32.1]} 20. Qc2 {[%clk 0:00:53.1]} 20... Qb6+ {[%clk 0:01:26]} 21.
Kh1 {[%clk 0:00:53.1]} 21... Rac8 {[%clk 0:01:24.4]} 22. Qd2 {[%clk 0:00:52.4]}
22... Na5 {[%clk 0:00:42]} 23. b3 {[%clk 0:00:47]} 23... Bc6 {[%clk 0:00:34.4]}
24. e3 {[%clk 0:00:42.8]} 24... b4 {[%clk 0:00:30.5]} 25. Ne2 {[%clk 0:00:41.3]}
25... Nb7 {[%clk 0:00:28.5]} 26. Nd4 {[%clk 0:00:40]} 26... a5 {[%clk
0:00:27.4]} 27. Rc2 {[%clk 0:00:37.4]} 27... Bd7 {[%clk 0:00:27.1]} 28. Rdc1
{[%clk 0:00:36.8]} 28... Rxc2 {[%clk 0:00:25.8]} 29. Rxc2 {[%clk 0:00:37.2]}
29... Rc8 {[%clk 0:00:22.4]} 30. g4 {[%clk 0:00:31.1]} 30... Rxc2 {[%clk
0:00:20.8]} 31. Qxc2 {[%clk 0:00:31.3]} 31... Qc5 {[%clk 0:00:21.2]} 32. Kg1
{[%clk 0:00:30.2]} 32... Qxc2 {[%clk 0:00:20.3]} 33. Nxc2 {[%clk 0:00:31.1]}
33... Bb5 {[%clk 0:00:14.3]} 34. Nd4 {[%clk 0:00:26.7]} 34... Bd3 {[%clk
0:00:13.6]} 35. Bf1 {[%clk 0:00:19.8]} 35... Bb1 {[%clk 0:00:13.5]} 36. Kf2
{[%clk 0:00:13.1]} 36... Nc5 {[%clk 0:00:13]} 37. Be2 {[%clk 0:00:09.8]} 37...
Bxa2 {[%clk 0:00:12.6]} 38. Bd1 {[%clk 0:00:10.1]} 38... Ne4+ {[%clk 0:00:05.7]}
39. Ke1 {[%clk 0:00:09.4]} 39... Nc3 {[%clk 0:00:05.7]} 40. Bc2 {[%clk
0:00:09.5]} 40... Bb1 {[%clk 0:00:05.6]} 41. Bxb1 {[%clk 0:00:07.2]} 41... Nxb1
{[%clk 0:00:05.9]} 42. Nc6 {[%clk 0:00:07.8]} 42... Nc3 {[%clk 0:00:02.6]} 43.
Nxa5 {[%clk 0:00:07.9]} 43... Ne4 {[%clk 0:00:01.6]} 44. Ke2 {[%clk 0:00:04.2]}
44... Nc5 {[%clk 0:00:01.9]} 45. Kd2 {[%clk 0:00:03.5]} 45... Kf8 {[%clk
0:00:02.4]} 46. Kc2 {[%clk 0:00:03.8]} 46... Ke8 {[%clk 0:00:02.5]} 47. Nc6
{[%clk 0:00:04.1]} 47... Ne4 {[%clk 0:00:02.4]} 48. Nxb4 {[%clk 0:00:03.1]}
48... Nf2 {[%clk 0:00:03.1]} 49. g5 {[%clk 0:00:02.8]} 49... Ng4 {[%clk
0:00:03.5]} 50. Kd3 {[%clk 0:00:02.8]} 50... Nxh2 {[%clk 0:00:03.6]} 51. Nc6
{[%clk 0:00:02.5]} 51... Kd7 {[%clk 0:00:03.8]} 52. Nd4 {[%clk 0:00:02.2]} 52...
Ng4 {[%clk 0:00:03.9]} 53. b4 {[%clk 0:00:02.6]} 53... h6 {[%clk 0:00:04.6]} 54.
gxh6 {[%clk 0:00:02.4]} 54... Nxh6 {[%clk 0:00:05.2]} 55. b5 {[%clk 0:00:03]}
55... Kc7 {[%clk 0:00:05.2]} 56. Nc6 {[%clk 0:00:03.1]} 56... Kb6 {[%clk
0:00:04.5]} 57. Nd4 {[%clk 0:00:02.9]} 57... Nf5 {[%clk 0:00:04.1]} 58. Nc6
{[%clk 0:00:02.2]} 58... Kxb5 {[%clk 0:00:04.2]} 59. Nd8 {[%clk 0:00:02.5]}
59... Nh6 {[%clk 0:00:04.8]} 60. e4 {[%clk 0:00:02.9]} 60... dxe4+ {[%clk
0:00:04.1]} 61. Kxe4 {[%clk 0:00:03.2]} 61... Kb6 {[%clk 0:00:04.5]} 0-1

[Event "*** Titled Tuesday Blitz"]
[Site "Chess.com"]
[Date "2020.05.05"]
[Round "6"]
[White "PSvidler"]
[Black "Volovier"]
[Result "1-0"]
[WhiteElo "3045"]
[BlackElo "2715"]
[TimeControl "180+1"]
[EndTime "11:09:15 PDT"]
[Termination "PSvidler won on time"]

1. e4 {[%clk 0:03:00.9]} 1... d5 {[%clk 0:02:59.1]} 2. exd5 {[%clk 0:03:00.6]}
2... Qxd5 {[%clk 0:02:58.7]} 3. Nf3 {[%clk 0:02:59.9]} 3... Bg4 {[%clk
0:02:55.5]} 4. Be2 {[%clk 0:02:59.7]} 4... Nf6 {[%clk 0:02:52.6]} 5. h3 {[%clk
0:02:58.4]} 5... Bxf3 {[%clk 0:02:50.4]} 6. Bxf3 {[%clk 0:02:58]} 6... Qe5+
{[%clk 0:02:50.8]} 7. Kf1 {[%clk 0:02:54.6]} 7... Nc6 {[%clk 0:02:48.9]} 8. c3
{[%clk 0:02:54.4]} 8... Qe6 {[%clk 0:02:44]} 9. Qb3 {[%clk 0:02:49.9]} 9... Qxb3
{[%clk 0:02:41]} 10. axb3 {[%clk 0:02:49.7]} 10... e6 {[%clk 0:02:40.4]} 11. d4
{[%clk 0:02:49.2]} 11... a5 {[%clk 0:02:29.4]} 12. Nd2 {[%clk 0:02:49]} 12...
Nd5 {[%clk 0:02:26.1]} 13. Nc4 {[%clk 0:02:42.5]} 13... Be7 {[%clk 0:02:18]} 14.
b4 {[%clk 0:02:38.9]} 14... b6 {[%clk 0:02:17]} 15. b5 {[%clk 0:02:24.2]} 15...
Na7 {[%clk 0:02:14.4]} 16. Ne5 {[%clk 0:01:31.1]} 16... f6 {[%clk 0:02:04.9]}
17. Nd3 {[%clk 0:01:28.9]} 17... Rd8 {[%clk 0:01:59.4]} 18. c4 {[%clk
0:01:26.4]} 18... Nb4 {[%clk 0:01:59.1]} 19. Nxb4 {[%clk 0:01:25.8]} 19... Bxb4
{[%clk 0:01:58.4]} 20. Be3 {[%clk 0:01:26.4]} 20... O-O {[%clk 0:01:55.1]} 21.
Ke2 {[%clk 0:01:25.9]} 21... Nc8 {[%clk 0:01:51.9]} 22. Rhc1 {[%clk 0:01:21]}
22... Ne7 {[%clk 0:01:47.4]} 23. g4 {[%clk 0:01:20.2]} 23... e5 {[%clk
0:01:43.9]} 24. dxe5 {[%clk 0:01:19.4]} 24... fxe5 {[%clk 0:01:44.8]} 25. c5
{[%clk 0:01:18.1]} 25... bxc5 {[%clk 0:01:42.6]} 26. Rxc5 {[%clk 0:01:00.9]}
26... Ng6 {[%clk 0:01:31.6]} 27. Rxc7 {[%clk 0:00:57.8]} 27... Nf4+ {[%clk
0:01:31.5]} 28. Bxf4 {[%clk 0:00:57.6]} 28... Rxf4 {[%clk 0:01:31]} 29. Rc2
{[%clk 0:00:45.8]} 29... e4 {[%clk 0:01:29]} 30. Bg2 {[%clk 0:00:45.9]} 30...
Rdf8 {[%clk 0:01:19]} 31. Rf1 {[%clk 0:00:45.4]} 31... Rb8 {[%clk 0:01:14.4]}
32. Rc4 {[%clk 0:00:45.1]} 32... Rxb5 {[%clk 0:01:12.2]} 33. Bxe4 {[%clk
0:00:45.6]} 33... Rf6 {[%clk 0:01:08.5]} 34. f4 {[%clk 0:00:43.3]} 34... Rd6
{[%clk 0:01:02.9]} 35. Rc8+ {[%clk 0:00:38.1]} 35... Kf7 {[%clk 0:01:02.3]} 36.
Bxh7 {[%clk 0:00:38.7]} 36... Rc5 {[%clk 0:00:59.5]} 37. Rxc5 {[%clk 0:00:37.9]}
37... Bxc5 {[%clk 0:00:59.4]} 38. Bc2 {[%clk 0:00:36.8]} 38... Rb6 {[%clk
0:00:55.6]} 39. b3 {[%clk 0:00:36.7]} 39... Re6+ {[%clk 0:00:54.1]} 40. Kd3
{[%clk 0:00:32.9]} 40... Re3+ {[%clk 0:00:51.6]} 41. Kc4 {[%clk 0:00:32.9]}
41... Bb4 {[%clk 0:00:51.9]} 42. Bd3 {[%clk 0:00:31.2]} 42... Rxh3 {[%clk
0:00:50.1]} 43. g5 {[%clk 0:00:31.5]} 43... Bd2 {[%clk 0:00:48.1]} 44. Kd4
{[%clk 0:00:28.9]} 44... Ke6 {[%clk 0:00:46.3]} 45. Ke4 {[%clk 0:00:28.8]} 45...
Re3+ {[%clk 0:00:44.1]} 46. Kd4 {[%clk 0:00:28.9]} 46... Rh3 {[%clk 0:00:43.7]}
47. f5+ {[%clk 0:00:22.2]} 47... Kf7 {[%clk 0:00:42.1]} 48. Bc4+ {[%clk
0:00:21.9]} 48... Kf8 {[%clk 0:00:38.2]} 49. g6 {[%clk 0:00:22.1]} 49... Rh4+
{[%clk 0:00:36.2]} 50. Kc5 {[%clk 0:00:21.9]} 50... Bg5 {[%clk 0:00:36]} 51. Rd1
{[%clk 0:00:20.5]} 51... Rf4 {[%clk 0:00:33.5]} 52. Be6 {[%clk 0:00:19.6]} 52...
Be7+ {[%clk 0:00:29.6]} 53. Kb5 {[%clk 0:00:19.4]} 53... Rb4+ {[%clk 0:00:29]}
54. Kxa5 {[%clk 0:00:19.4]} 54... Rb8 {[%clk 0:00:27.7]} 55. Rd4 {[%clk
0:00:19]} 55... Bf6 {[%clk 0:00:25]} 56. Re4 {[%clk 0:00:18.2]} 56... Bd8+
{[%clk 0:00:20.9]} 57. Ka6 {[%clk 0:00:17.8]} 57... Be7 {[%clk 0:00:18.4]} 58.
Bf7 {[%clk 0:00:17.7]} 58... Rb4 {[%clk 0:00:12.1]} 59. Bc4 {[%clk 0:00:16.1]}
59... Bc5 {[%clk 0:00:09.7]} 60. Re5 {[%clk 0:00:15.1]} 60... Be7 {[%clk
0:00:09.3]} 61. Rd5 {[%clk 0:00:15.2]} 61... Rb8 {[%clk 0:00:07.1]} 62. Rd7
{[%clk 0:00:15.1]} 62... Ke8 {[%clk 0:00:05.2]} 63. Ra7 {[%clk 0:00:14.2]} 63...
Kd8 {[%clk 0:00:03.2]} 64. Bb5 {[%clk 0:00:13.5]} 64... Rc8 {[%clk 0:00:03.2]}
65. Rd7+ {[%clk 0:00:13]} 65... Ke8 {[%clk 0:00:01.7]} 66. f6 {[%clk 0:00:13.2]}
66... gxf6 {[%clk 0:00:01.1]} 67. Rc7+ {[%clk 0:00:13.1]} 1-0